Department Family,Entity,Date,Expense Type,Expense Area,Supplier,Transaction Number,AP Amount,Supplier Postcode,VAT Registration Number,Purchase Invoice Number
Department of Health,St. Helens&Knowsley Hospitals NHS Trust,31/05/2023,Audit Fees: Ext non-stat,FINANCE DIRECTORATE HQ,GRANT THORNTON UK LLP,46769747,"28,875.00",NN4 7YE,835586102,30163510
Department of Health,St. Helens&Knowsley Hospitals NHS Trust,31/05/2023,Audit Fees: Ext non-stat,FINANCE DIRECTORATE HQ,GRANT THORNTON UK LLP,46769747,"5,775.00",NN4 7YE,835586102,30163510
Department of Health,St. Helens&Knowsley Hospitals NHS Trust,31/05/2023,Computer Hardware Purch,MMDA PROGRAMME COSTS - SHARED SERVICES,DELL FINANCIAL SERVICES,46715488,"254,579.66",xxx xxx,IE 9804939D,4220091670
Department of Health,St. Helens&Knowsley Hospitals NHS Trust,31/05/2023,Computer Maintenance,EMIS COMMUNITY PROJECT,EMIS (EGTON MEDICAL INFORMATION SYSTEMS LTD),46688821,"6,600.00",LS19 7BY,927149214,SINV00009652
Department of Health,St. Helens&Knowsley Hospitals NHS Trust,31/05/2023,Computer Maintenance,EMIS COMMUNITY PROJECT,EMIS (EGTON MEDICAL INFORMATION SYSTEMS LTD),46688821,"44,786.50",LS19 7BY,927149214,SINV00009652
Department of Health,St. Helens&Knowsley Hospitals NHS Trust,31/05/2023,Computer Maintenance,EMIS COMMUNITY PROJECT,EMIS (EGTON MEDICAL INFORMATION SYSTEMS LTD),46688821,"27,335.00",LS19 7BY,927149214,SINV00009652
Department of Health,St. Helens&Knowsley Hospitals NHS Trust,31/05/2023,Computer Maintenance,EMIS COMMUNITY PROJECT,EMIS (EGTON MEDICAL INFORMATION SYSTEMS LTD),46688821,"4,423.10",LS19 7BY,927149214,SINV00009652
Department of Health,St. Helens&Knowsley Hospitals NHS Trust,31/05/2023,Computer Maintenance,EMIS COMMUNITY PROJECT,EMIS (EGTON MEDICAL INFORMATION SYSTEMS LTD),46688821,"16,628.92",LS19 7BY,927149214,SINV00009652
Department of Health,St. Helens&Knowsley Hospitals NHS Trust,31/05/2023,Computer Maintenance,TRUST IT SYSTEMS,INSIGHT DIRECT (UK) LTD,47016329,"22,406.00",S9 2BU,746075129,2100592185
Department of Health,St. Helens&Knowsley Hospitals NHS Trust,31/05/2023,Computer Maintenance,TRUST IT SYSTEMS,INSIGHT DIRECT (UK) LTD,47016329,"4,481.20",S9 2BU,746075129,2100592185
Department of Health,St. Helens&Knowsley Hospitals NHS Trust,31/05/2023,Computer Maintenance,BD INCOME-NON PARTNERS,EMIS (EGTON MEDICAL INFORMATION SYSTEMS LTD),47025618,"36,064.42",LS19 7BY,927149214,SINV00010643
Department of Health,St. Helens&Knowsley Hospitals NHS Trust,31/05/2023,Computer Software/License,LE-MANAGEMENT TEAM,BP3 GLOBAL LTD,46863003,"35,000.00",EC3V 9LJ,,INV007901
Department of Health,St. Helens&Knowsley Hospitals NHS Trust,31/05/2023,Computer Software/License,PAYROLL SERVICES,BP3 GLOBAL LTD,46863004,"35,000.00",EC3V 9LJ,,INV007902
Department of Health,St. Helens&Knowsley Hospitals NHS Trust,31/05/2023,Computer Software/License,Mersey Burns App,BLUM HEALTH LTD,47129345,"45,000.00",CH41 1AS,350804812,0146
Department of Health,St. Helens&Knowsley Hospitals NHS Trust,31/05/2023,Continence Products,COMMUNITY CONTINENCE SERVICE,ESSITY UK LTD,47035114,"59,752.75",LU6 3EJ,GB 600 4331 06,6402111736
Department of Health,St. Helens&Knowsley Hospitals NHS Trust,31/05/2023,Contr Photocopier Rental,MMDA PROGRAMME COSTS - SHARED SERVICES,CANON UK LTD,45403548,"40,444.09",UB11 1AF,523797128,2308800014246
Department of Health,St. Helens&Knowsley Hospitals NHS Trust,31/05/2023,Contr Photocopier Rental,MMDA PROGRAMME COSTS - SHARED SERVICES,CANON UK LTD,46688743,"29,912.88",UB11 1AF,523797128,2308800073249
Department of Health,St. Helens&Knowsley Hospitals NHS Trust,31/05/2023,Contr Refuse & Clin Waste,COMMUNITY RENT,ST HELENS COLLEGE,46591487,"27,245.81",WA10 1PP,673361429,S70850
Department of Health,St. Helens&Knowsley Hospitals NHS Trust,31/05/2023,Contr Refuse & Clin Waste,COMMUNITY RENT,ST HELENS COLLEGE,46591487,481.74,WA10 1PP,673361429,S70850
Department of Health,St. Helens&Knowsley Hospitals NHS Trust,31/05/2023,Course Fees,NURSING ADMINISTRATION,TENDABLE LTD,47039925,"72,576.00",NW1 2DX,,230703
Department of Health,St. Helens&Knowsley Hospitals NHS Trust,31/05/2023,Equip Maint Contracts,RADIOGRAPHY WHISTON,SUPPLY CHAIN COORDINATION LIMITED,47028732,"52,407.75",DE55 4QJ,290885854,2124001278
Department of Health,St. Helens&Knowsley Hospitals NHS Trust,31/05/2023,External Consultancy Fees,CHIEF EXECUTIVE'S OFFICE,CARE QUALITY COMMISSION,46737783,"342,424.00",LS11 1HP,GB 948043217,43328050
Department of Health,St. Helens&Knowsley Hospitals NHS Trust,31/05/2023,External Contractors,ST HELENS UTC,ST HELENS ROTA,46801992,"37,228.36",WA10 2HU,,3431
Department of Health,St. Helens&Knowsley Hospitals NHS Trust,31/05/2023,Funeral Expenses,PATHOLOGY GENERAL,BARRINGTONS FUNERAL SERVICES LTD,46934666,"32,375.00",L22 4QF,,60
Department of Health,St. Helens&Knowsley Hospitals NHS Trust,31/05/2023,Interpreting services,A + E NURSING WHISTON,DA LANGUAGES LTD,46767957,"1,253.88",M32 0FP,293366572,I0311319
Department of Health,St. Helens&Knowsley Hospitals NHS Trust,31/05/2023,Interpreting services,AUDIOLOGY,DA LANGUAGES LTD,46767957,164.28,M32 0FP,293366572,I0311319
Department of Health,St. Helens&Knowsley Hospitals NHS Trust,31/05/2023,Interpreting services,B + P DRESSINGS CLINIC,DA LANGUAGES LTD,46767957,894.36,M32 0FP,293366572,I0311319
Department of Health,St. Helens&Knowsley Hospitals NHS Trust,31/05/2023,Interpreting services,B + P MEDICAL STAFF,DA LANGUAGES LTD,46767957,"1,158.66",M32 0FP,293366572,I0311319
Department of Health,St. Helens&Knowsley Hospitals NHS Trust,31/05/2023,Interpreting services,CARDIO-RESPIRATORY (ECG),DA LANGUAGES LTD,46767957,484.56,M32 0FP,293366572,I0311319
Department of Health,St. Helens&Knowsley Hospitals NHS Trust,31/05/2023,Interpreting services,CARDIOLOGY SNR MEDICAL,DA LANGUAGES LTD,46767957,61.02,M32 0FP,293366572,I0311319
Department of Health,St. Helens&Knowsley Hospitals NHS Trust,31/05/2023,Interpreting services,COMMUNITY CARDIAC TEAM,DA LANGUAGES LTD,46767957,145.92,M32 0FP,293366572,I0311319
Department of Health,St. Helens&Knowsley Hospitals NHS Trust,31/05/2023,Interpreting services,COMMUNITY CONTINENCE SERVICE,DA LANGUAGES LTD,46767957,69.12,M32 0FP,293366572,I0311319
Department of Health,St. Helens&Knowsley Hospitals NHS Trust,31/05/2023,Interpreting services,COMMUNITY MIDWIFERY,DA LANGUAGES LTD,46767957,689.34,M32 0FP,293366572,I0311319
Department of Health,St. Helens&Knowsley Hospitals NHS Trust,31/05/2023,Interpreting services,DELIVERY SUITE,DA LANGUAGES LTD,46767957,332.64,M32 0FP,293366572,I0311319
Department of Health,St. Helens&Knowsley Hospitals NHS Trust,31/05/2023,Interpreting services,DERMATOLOGY,DA LANGUAGES LTD,46767957,"1,301.04",M32 0FP,293366572,I0311319
Department of Health,St. Helens&Knowsley Hospitals NHS Trust,31/05/2023,Interpreting services,DIABETES NURSING,DA LANGUAGES LTD,46767957,"1,104.42",M32 0FP,293366572,I0311319
Department of Health,St. Helens&Knowsley Hospitals NHS Trust,31/05/2023,Interpreting services,DUFFY SUITE INTERMEDIATE CARE UNIT,DA LANGUAGES LTD,46767957,16.20,M32 0FP,293366572,I0311319
Department of Health,St. Helens&Knowsley Hospitals NHS Trust,31/05/2023,Interpreting services,ENT MEDICAL STAFF,DA LANGUAGES LTD,46767957,"1,218.78",M32 0FP,293366572,I0311319
Department of Health,St. Helens&Knowsley Hospitals NHS Trust,31/05/2023,Interpreting services,GASTROLOGY SNR MEDICAL,DA LANGUAGES LTD,46767957,"1,333.02",M32 0FP,293366572,I0311319
Department of Health,St. Helens&Knowsley Hospitals NHS Trust,31/05/2023,Interpreting services,GEN MED ENDOSCOPY H2,DA LANGUAGES LTD,46767957,"1,284.90",M32 0FP,293366572,I0311319
Department of Health,St. Helens&Knowsley Hospitals NHS Trust,31/05/2023,Interpreting services,GENERAL SURGERY MEDICAL,DA LANGUAGES LTD,46767957,"2,076.72",M32 0FP,293366572,I0311319
Department of Health,St. Helens&Knowsley Hospitals NHS Trust,31/05/2023,Interpreting services,GYNAE OUTPATIEN ST HELENS,DA LANGUAGES LTD,46767957,600.06,M32 0FP,293366572,I0311319
Department of Health,St. Helens&Knowsley Hospitals NHS Trust,31/05/2023,Interpreting services,GYNAECOLOGY OPD WHISTON,DA LANGUAGES LTD,46767957,"3,689.22",M32 0FP,293366572,I0311319
Department of Health,St. Helens&Knowsley Hospitals NHS Trust,31/05/2023,Interpreting services,HAEMATOLOGY MEDICAL,DA LANGUAGES LTD,46767957,287.64,M32 0FP,293366572,I0311319
Department of Health,St. Helens&Knowsley Hospitals NHS Trust,31/05/2023,Interpreting services,IV THERAPY ST HELENS,DA LANGUAGES LTD,46767957,16.20,M32 0FP,293366572,I0311319
Department of Health,St. Helens&Knowsley Hospitals NHS Trust,31/05/2023,Interpreting services,LASER CLINICS,DA LANGUAGES LTD,46767957,104.28,M32 0FP,293366572,I0311319
Department of Health,St. Helens&Knowsley Hospitals NHS Trust,31/05/2023,Interpreting services,MARSHALLS CROSS MEDICAL CENTRE,DA LANGUAGES LTD,46767957,59.40,M32 0FP,293366572,I0311319
Department of Health,St. Helens&Knowsley Hospitals NHS Trust,31/05/2023,Interpreting services,NEUROPHYSIOLOGY (EEG),DA LANGUAGES LTD,46767957,219.36,M32 0FP,293366572,I0311319
Department of Health,St. Helens&Knowsley Hospitals NHS Trust,31/05/2023,Interpreting services,NEUROSURGERY - MEDICAL STAFF,DA LANGUAGES LTD,46767957,55.08,M32 0FP,293366572,I0311319
Department of Health,St. Helens&Knowsley Hospitals NHS Trust,31/05/2023,Interpreting services,OBSTETRICS WARD 2E,DA LANGUAGES LTD,46767957,100.86,M32 0FP,293366572,I0311319
Department of Health,St. Helens&Knowsley Hospitals NHS Trust,31/05/2023,Interpreting services,OPHTHALMOLOGY MEDICAL,DA LANGUAGES LTD,46767957,"2,413.50",M32 0FP,293366572,I0311319
Department of Health,St. Helens&Knowsley Hospitals NHS Trust,31/05/2023,Interpreting services,ORTHODONTICS & ORAL & FACIAL SURGERY,DA LANGUAGES LTD,46767957,743.28,M32 0FP,293366572,I0311319
Department of Health,St. Helens&Knowsley Hospitals NHS Trust,31/05/2023,Interpreting services,ORTHOPAEDIC MEDICAL STAFF,DA LANGUAGES LTD,46767957,"1,348.14",M32 0FP,293366572,I0311319
Department of Health,St. Helens&Knowsley Hospitals NHS Trust,31/05/2023,Interpreting services,ORTHOPTICS DEPARTMENT,DA LANGUAGES LTD,46767957,633.18,M32 0FP,293366572,I0311319
Department of Health,St. Helens&Knowsley Hospitals NHS Trust,31/05/2023,Interpreting services,PAEDIATRIC MEDICAL STAFF,DA LANGUAGES LTD,46767957,964.54,M32 0FP,293366572,I0311319
Department of Health,St. Helens&Knowsley Hospitals NHS Trust,31/05/2023,Interpreting services,PRE OP SCG,DA LANGUAGES LTD,46767957,"1,530.90",M32 0FP,293366572,I0311319
Department of Health,St. Helens&Knowsley Hospitals NHS Trust,31/05/2023,Interpreting services,RADIOGRAPHY WHISTON,DA LANGUAGES LTD,46767957,"3,138.36",M32 0FP,293366572,I0311319
Department of Health,St. Helens&Knowsley Hospitals NHS Trust,31/05/2023,Interpreting services,RHEUMATOLOGY NURSING OUTPATIENTS,DA LANGUAGES LTD,46767957,150.24,M32 0FP,293366572,I0311319
Department of Health,St. Helens&Knowsley Hospitals NHS Trust,31/05/2023,Interpreting services,RHEUMATOLOGY SNR MEDICAL,DA LANGUAGES LTD,46767957,361.38,M32 0FP,293366572,I0311319
Department of Health,St. Helens&Knowsley Hospitals NHS Trust,31/05/2023,Interpreting services,SANDERSON SUITE GENERAL SURGERY,DA LANGUAGES LTD,46767957,396.42,M32 0FP,293366572,I0311319
Department of Health,St. Helens&Knowsley Hospitals NHS Trust,31/05/2023,Interpreting services,SEXUAL HEALTH,DA LANGUAGES LTD,46767957,812.16,M32 0FP,293366572,I0311319
Department of Health,St. Helens&Knowsley Hospitals NHS Trust,31/05/2023,Interpreting services,ST HELENS UTC,DA LANGUAGES LTD,46767957,319.68,M32 0FP,293366572,I0311319
Department of Health,St. Helens&Knowsley Hospitals NHS Trust,31/05/2023,Interpreting services,THEATRES MEDICAL STAFF,DA LANGUAGES LTD,46767957,528.78,M32 0FP,293366572,I0311319
Department of Health,St. Helens&Knowsley Hospitals NHS Trust,31/05/2023,Interpreting services,THERAPY MANAGEMENT & ADMIN.,DA LANGUAGES LTD,46767957,"1,330.08",M32 0FP,293366572,I0311319
Department of Health,St. Helens&Knowsley Hospitals NHS Trust,31/05/2023,Interpreting services,UROLOGY MEDICAL STAFF,DA LANGUAGES LTD,46767957,"1,103.16",M32 0FP,293366572,I0311319
Department of Health,St. Helens&Knowsley Hospitals NHS Trust,31/05/2023,Interpreting services,VASCULAR SURGERY MEDICAL STAFF,DA LANGUAGES LTD,46767957,181.20,M32 0FP,293366572,I0311319
Department of Health,St. Helens&Knowsley Hospitals NHS Trust,31/05/2023,Interpreting services,WARD 1B ACUTE MEDICAL UNIT,DA LANGUAGES LTD,46767957,192.60,M32 0FP,293366572,I0311319
Department of Health,St. Helens&Knowsley Hospitals NHS Trust,31/05/2023,Interpreting services,WARD 1C ACUTE MEDICAL UNIT,DA LANGUAGES LTD,46767957,34.56,M32 0FP,293366572,I0311319
Department of Health,St. Helens&Knowsley Hospitals NHS Trust,31/05/2023,Interpreting services,WARD 1D CARDIOLOGY,DA LANGUAGES LTD,46767957,64.80,M32 0FP,293366572,I0311319
Department of Health,St. Helens&Knowsley Hospitals NHS Trust,31/05/2023,Interpreting services,WARD 1E CORONARY CARE UNIT,DA LANGUAGES LTD,46767957,65.88,M32 0FP,293366572,I0311319
Department of Health,St. Helens&Knowsley Hospitals NHS Trust,31/05/2023,Interpreting services,WARD 2C RESPIRATORY,DA LANGUAGES LTD,46767957,390.24,M32 0FP,293366572,I0311319
Department of Health,St. Helens&Knowsley Hospitals NHS Trust,31/05/2023,Interpreting services,WARD 3A PLASTICS,DA LANGUAGES LTD,46767957,296.40,M32 0FP,293366572,I0311319
Department of Health,St. Helens&Knowsley Hospitals NHS Trust,31/05/2023,Interpreting services,WARD 3D GASTROENTEROLOGY,DA LANGUAGES LTD,46767957,97.32,M32 0FP,293366572,I0311319
Department of Health,St. Helens&Knowsley Hospitals NHS Trust,31/05/2023,Interpreting services,WARD 3E GYNAECOLOGY,DA LANGUAGES LTD,46767957,32.40,M32 0FP,293366572,I0311319
Department of Health,St. Helens&Knowsley Hospitals NHS Trust,31/05/2023,Interpreting services,WARD 3F PAEDIATRICS,DA LANGUAGES LTD,46767957,39.96,M32 0FP,293366572,I0311319
Department of Health,St. Helens&Knowsley Hospitals NHS Trust,31/05/2023,Interpreting services,WARD 4B GENERAL SURGERY,DA LANGUAGES LTD,46767957,705.72,M32 0FP,293366572,I0311319
Department of Health,St. Helens&Knowsley Hospitals NHS Trust,31/05/2023,Interpreting services,WARD 4F PAEDIATRICS,DA LANGUAGES LTD,46767957,728.28,M32 0FP,293366572,I0311319
Department of Health,St. Helens&Knowsley Hospitals NHS Trust,31/05/2023,Interpreting services,WARD 5C ACUTE STROKE UNIT (HASU),DA LANGUAGES LTD,46767957,64.80,M32 0FP,293366572,I0311319
Department of Health,St. Helens&Knowsley Hospitals NHS Trust,31/05/2023,Interpreting services,WOMENS OPD,DA LANGUAGES LTD,46767957,"1,275.48",M32 0FP,293366572,I0311319
Department of Health,St. Helens&Knowsley Hospitals NHS Trust,31/05/2023,IT Additions,Balance Sheet,VIRGIN MEDIA LTD,47088203,"249,844.69",BD4 8PW,Gb 591819014,60050694
Department of Health,St. Helens&Knowsley Hospitals NHS Trust,31/05/2023,IT Additions,Balance Sheet,VIRGIN MEDIA LTD,47088203,"49,968.94",BD4 8PW,Gb 591819014,60050694
Department of Health,St. Helens&Knowsley Hospitals NHS Trust,31/05/2023,Laboratory Chemicals,MICROBIOLOGY DEPT,CHRYSTAL CONSULTING LTD,46859166,"5,940.91",M22 5HQ,,62692
Department of Health,St. Helens&Knowsley Hospitals NHS Trust,31/05/2023,Laboratory Chemicals,MICROBIOLOGY DEPT,CHRYSTAL CONSULTING LTD,46859167,"86,607.44",M22 5HQ,,62725
Department of Health,St. Helens&Knowsley Hospitals NHS Trust,31/05/2023,Laboratory Chemicals,MICROBIOLOGY DEPT,CHRYSTAL CONSULTING LTD,46859167,"17,321.49",M22 5HQ,,62725
Department of Health,St. Helens&Knowsley Hospitals NHS Trust,31/05/2023,Laboratory Chemicals,MICROBIOLOGY DEPT,CHRYSTAL CONSULTING LTD,46859168,"111,647.29",M22 5HQ,,62726
Department of Health,St. Helens&Knowsley Hospitals NHS Trust,31/05/2023,Laboratory Chemicals,MICROBIOLOGY DEPT,CHRYSTAL CONSULTING LTD,46859168,"22,329.46",M22 5HQ,,62726
Department of Health,St. Helens&Knowsley Hospitals NHS Trust,31/05/2023,Laboratory Chemicals,MICROBIOLOGY DEPT,CHRYSTAL CONSULTING LTD,46904960,"80,805.41",M22 5HQ,,62727
Department of Health,St. Helens&Knowsley Hospitals NHS Trust,31/05/2023,Laboratory Chemicals,HAEM + BLOOD TRANSFUSION,CHECKIT EUROPE LTD,47040816,"27,290.00",CB3 0FA,GB217 1305 4 7,INV4624
Department of Health,St. Helens&Knowsley Hospitals NHS Trust,31/05/2023,Laboratory Chemicals,HAEM + BLOOD TRANSFUSION,CHECKIT EUROPE LTD,47040816,"5,458.00",CB3 0FA,GB217 1305 4 7,INV4624
Department of Health,St. Helens&Knowsley Hospitals NHS Trust,31/05/2023,Laboratory Equipment,HISTOPATHOLOGY/MORTUARY,AES MEDICAL,47120441,"33,862.81",DE1 1UL,,2904
Department of Health,St. Helens&Knowsley Hospitals NHS Trust,31/05/2023,Laboratory Equipment,HISTOPATHOLOGY/MORTUARY,AES MEDICAL,47120441,"6,772.56",DE1 1UL,,2904
Department of Health,St. Helens&Knowsley Hospitals NHS Trust,31/05/2023,Laboratory Test Kits,CARDIO-RESPIRATORY (ECG),CHRYSTAL CONSULTING LTD,46880803,"42,215.89",M22 5HQ,,62644
Department of Health,St. Helens&Knowsley Hospitals NHS Trust,31/05/2023,Laboratory Test Kits,CARDIO-RESPIRATORY (ECG),CHRYSTAL CONSULTING LTD,46880803,"8,443.18",M22 5HQ,,62644
Department of Health,St. Helens&Knowsley Hospitals NHS Trust,31/05/2023,Laboratory Test Kits,POINT OF CARE,CHRYSTAL CONSULTING LTD,46881263,"24,276.17",M22 5HQ,,62645
Department of Health,St. Helens&Knowsley Hospitals NHS Trust,31/05/2023,Laboratory Test Kits,POINT OF CARE,CHRYSTAL CONSULTING LTD,46881263,"4,855.23",M22 5HQ,,62645
Department of Health,St. Helens&Knowsley Hospitals NHS Trust,31/05/2023,Legal / Prof Fees,FINANCE DIRECTORATE HQ,WEIGHTMANS LLP,46679785,"28,764.00",L3 9QJ,GB 974 8257 69,02136127
Department of Health,St. Helens&Knowsley Hospitals NHS Trust,31/05/2023,Med & Surg Equip Disp,GEN MED ENDOSCOPY H2,BOSTON SCIENTIFIC LTD,46939154,"4,227.24",HP2 4TZ,896105403,7162710706
Department of Health,St. Helens&Knowsley Hospitals NHS Trust,31/05/2023,Med & Surg Equip General,THEATRES BURNS + PLASTICS,AAH PHARMACEUTICALS LTD,46715602,180.44,WA2 8UH,GB 222 5169 87,APRIL02042023
Department of Health,St. Helens&Knowsley Hospitals NHS Trust,31/05/2023,Med & Surg Equip General,THEATRES MAIN ST HELEN'S,AAH PHARMACEUTICALS LTD,46715602,232.00,WA2 8UH,GB 222 5169 87,APRIL02042023
Department of Health,St. Helens&Knowsley Hospitals NHS Trust,31/05/2023,Med & Surg Equip Hire,WHISTON EQUIPMENT POOL,MEDSTROM LTD,46939188,"13,564.85",DE74 2SA,885208793,143381
Department of Health,St. Helens&Knowsley Hospitals NHS Trust,31/05/2023,Med & Surg Maint Contract,GEN MED ENDOSCOPY H2,SUPPLY CHAIN COORDINATION LIMITED,46779366,"389,947.79",DE55 4QJ,290885854,2124000630
Department of Health,St. Helens&Knowsley Hospitals NHS Trust,31/05/2023,Med & Surg Maint Contract,COLD DECONTAMINATION WHISTON,ENVIROGEN WATER TECHNOLOGIES LTD,46880101,"35,520.00",DE55 4LS,841026364,58458
Department of Health,St. Helens&Knowsley Hospitals NHS Trust,31/05/2023,Med & Surg Maint Contract,COLD DECONTAMINATION WHISTON,TEST LTD,47003633,"24,194.00",ST4 4JP,900467939,15294
Department of Health,St. Helens&Knowsley Hospitals NHS Trust,31/05/2023,Med Equip Additions,Balance Sheet,INOVUS LTD,46688809,"24,000.00",WA9 5AA,180391609,INV1327
Department of Health,St. Helens&Knowsley Hospitals NHS Trust,31/05/2023,Med Equip Additions,Balance Sheet,PAXMAN COOLERS LTD,46880812,386.00,HD8 0LE,734084441,PSI0006517
Department of Health,St. Helens&Knowsley Hospitals NHS Trust,31/05/2023,Med Equip Additions,Balance Sheet,PAXMAN COOLERS LTD,46880812,"4,400.00",HD8 0LE,734084441,PSI0006517
Department of Health,St. Helens&Knowsley Hospitals NHS Trust,31/05/2023,Med Equip Additions,Balance Sheet,PAXMAN COOLERS LTD,46880812,"26,950.00",HD8 0LE,734084441,PSI0006517
Department of Health,St. Helens&Knowsley Hospitals NHS Trust,31/05/2023,Med Equip Additions,Balance Sheet,PAXMAN COOLERS LTD,46880812,"3,520.00",HD8 0LE,734084441,PSI0006517
Department of Health,St. Helens&Knowsley Hospitals NHS Trust,31/05/2023,Med Equip Additions,Balance Sheet,PAXMAN COOLERS LTD,46880812,"7,051.20",HD8 0LE,734084441,PSI0006517
Department of Health,St. Helens&Knowsley Hospitals NHS Trust,31/05/2023,Med Equip Additions,Balance Sheet,SUPPLY CHAIN COORDINATION LIMITED,46970973,"73,428.07",DE55 4QJ,290885854,9524000134
Department of Health,St. Helens&Knowsley Hospitals NHS Trust,31/05/2023,Med Equip Additions,Balance Sheet,SUPPLY CHAIN COORDINATION LIMITED,46970973,"14,685.61",DE55 4QJ,290885854,9524000134
Department of Health,St. Helens&Knowsley Hospitals NHS Trust,31/05/2023,Med Equip Additions,Balance Sheet,MEDICAL GRAPHICS UK LTD,47003734,426.00,GL20 8SF,811458347,12742
Department of Health,St. Helens&Knowsley Hospitals NHS Trust,31/05/2023,Med Equip Additions,Balance Sheet,MEDICAL GRAPHICS UK LTD,47003734,370.00,GL20 8SF,811458347,12742
Department of Health,St. Helens&Knowsley Hospitals NHS Trust,31/05/2023,Med Equip Additions,Balance Sheet,MEDICAL GRAPHICS UK LTD,47003734,171.00,GL20 8SF,811458347,12742
Department of Health,St. Helens&Knowsley Hospitals NHS Trust,31/05/2023,Med Equip Additions,Balance Sheet,MEDICAL GRAPHICS UK LTD,47003734,"2,514.00",GL20 8SF,811458347,12742
Department of Health,St. Helens&Knowsley Hospitals NHS Trust,31/05/2023,Med Equip Additions,Balance Sheet,MEDICAL GRAPHICS UK LTD,47003734,529.00,GL20 8SF,811458347,12742
Department of Health,St. Helens&Knowsley Hospitals NHS Trust,31/05/2023,Med Equip Additions,Balance Sheet,MEDICAL GRAPHICS UK LTD,47003734,638.00,GL20 8SF,811458347,12742
Department of Health,St. Helens&Knowsley Hospitals NHS Trust,31/05/2023,Med Equip Additions,Balance Sheet,MEDICAL GRAPHICS UK LTD,47003734,543.00,GL20 8SF,811458347,12742
Department of Health,St. Helens&Knowsley Hospitals NHS Trust,31/05/2023,Med Equip Additions,Balance Sheet,MEDICAL GRAPHICS UK LTD,47003734,370.00,GL20 8SF,811458347,12742
Department of Health,St. Helens&Knowsley Hospitals NHS Trust,31/05/2023,Med Equip Additions,Balance Sheet,MEDICAL GRAPHICS UK LTD,47003734,370.00,GL20 8SF,811458347,12742
Department of Health,St. Helens&Knowsley Hospitals NHS Trust,31/05/2023,Med Equip Additions,Balance Sheet,MEDICAL GRAPHICS UK LTD,47003734,"38,000.00",GL20 8SF,811458347,12742
Department of Health,St. Helens&Knowsley Hospitals NHS Trust,31/05/2023,Med Equip Additions,Balance Sheet,MEDICAL GRAPHICS UK LTD,47003734,643.00,GL20 8SF,811458347,12742
Department of Health,St. Helens&Knowsley Hospitals NHS Trust,31/05/2023,Med Equip Additions,Balance Sheet,MEDICAL GRAPHICS UK LTD,47003734,370.00,GL20 8SF,811458347,12742
Department of Health,St. Helens&Knowsley Hospitals NHS Trust,31/05/2023,Med Equip Additions,Balance Sheet,MEDICAL GRAPHICS UK LTD,47003734,593.00,GL20 8SF,811458347,12742
Department of Health,St. Helens&Knowsley Hospitals NHS Trust,31/05/2023,Med Equip Additions,Balance Sheet,MEDICAL GRAPHICS UK LTD,47003734,320.00,GL20 8SF,811458347,12742
Department of Health,St. Helens&Knowsley Hospitals NHS Trust,31/05/2023,Med Equip Additions,Balance Sheet,MEDICAL GRAPHICS UK LTD,47003734,346.00,GL20 8SF,811458347,12742
Department of Health,St. Helens&Knowsley Hospitals NHS Trust,31/05/2023,Med Equip Additions,Balance Sheet,MEDICAL GRAPHICS UK LTD,47003734,"9,240.60",GL20 8SF,811458347,12742
Department of Health,St. Helens&Knowsley Hospitals NHS Trust,31/05/2023,Med Equip Additions,Balance Sheet,EVIDENT EUROPE GMBH - UK BRANCH,47016309,"25,559.50",CM24 1AL,,9040003114
Department of Health,St. Helens&Knowsley Hospitals NHS Trust,31/05/2023,Med Equip Additions,Balance Sheet,EVIDENT EUROPE GMBH - UK BRANCH,47016309,"5,111.90",CM24 1AL,,9040003114
Department of Health,St. Helens&Knowsley Hospitals NHS Trust,31/05/2023,Miscellaneous Expenditure,HSDU WHISTON,SYNERGY HEALTH (UK) LTD,46768133,"219,551.52",DE21 6LY,706163456,122329
Department of Health,St. Helens&Knowsley Hospitals NHS Trust,31/05/2023,Miscellaneous Expenditure,PFI ENABLING WORKS,NEW HOSPITALS (ST HELENS & KNOWSLEY) LTD,46859163,"1,119,347.72",BR8 7AG,864464302,INV000086
Department of Health,St. Helens&Knowsley Hospitals NHS Trust,31/05/2023,Miscellaneous Expenditure,PFI ENABLING WORKS,NEW HOSPITALS (ST HELENS & KNOWSLEY) LTD,46859163,"223,830.63",BR8 7AG,864464302,INV000086
Department of Health,St. Helens&Knowsley Hospitals NHS Trust,31/05/2023,Miscellaneous Expenditure,BEVAN COURT FM,NEW HOSPITALS (ST HELENS & KNOWSLEY) LTD,47035134,"106,118.60",BR8 7AG,864464302,INV000084
Department of Health,St. Helens&Knowsley Hospitals NHS Trust,31/05/2023,NonNHS Trade Pybls Curr,Balance Sheet,SUPPLY CHAIN COORDINATION LIMITED,46767982,"62,987.33",DE55 4QJ,290885854,1124011131
Department of Health,St. Helens&Knowsley Hospitals NHS Trust,31/05/2023,NonNHS Trade Pybls Curr,Balance Sheet,SUPPLY CHAIN COORDINATION LIMITED,46767986,"99,904.95",DE55 4QJ,290885854,1124007745
Department of Health,St. Helens&Knowsley Hospitals NHS Trust,31/05/2023,NonNHS Trade Pybls Curr,Balance Sheet,SUPPLY CHAIN COORDINATION LIMITED,46768028,"167,028.32",DE55 4QJ,290885854,1124014476
Department of Health,St. Helens&Knowsley Hospitals NHS Trust,31/05/2023,NonNHS Trade Pybls Curr,Balance Sheet,SUPPLY CHAIN COORDINATION LIMITED,46768052,"89,412.78",DE55 4QJ,290885854,1124018267
Department of Health,St. Helens&Knowsley Hospitals NHS Trust,31/05/2023,NonNHS Trade Pybls Curr,Balance Sheet,SUPPLY CHAIN COORDINATION LIMITED,46801985,"82,042.29",DE55 4QJ,290885854,1124025656
Department of Health,St. Helens&Knowsley Hospitals NHS Trust,31/05/2023,NonNHS Trade Pybls Curr,Balance Sheet,SUPPLY CHAIN COORDINATION LIMITED,46801986,"196,820.06",DE55 4QJ,290885854,1124021107
Department of Health,St. Helens&Knowsley Hospitals NHS Trust,31/05/2023,NonNHS Trade Pybls Curr,Balance Sheet,SUPPLY CHAIN COORDINATION LIMITED,46882183,"96,806.14",DE55 4QJ,290885854,1124027729
Department of Health,St. Helens&Knowsley Hospitals NHS Trust,31/05/2023,NonNHS Trade Pybls Curr,Balance Sheet,SUPPLY CHAIN COORDINATION LIMITED,46882192,"44,158.93",DE55 4QJ,290885854,1124031547
Department of Health,St. Helens&Knowsley Hospitals NHS Trust,31/05/2023,NonNHS Trade Pybls Curr,Balance Sheet,SUPPLY CHAIN COORDINATION LIMITED,47035247,"94,553.86",DE55 4QJ,290885854,1124033195
Department of Health,St. Helens&Knowsley Hospitals NHS Trust,31/05/2023,NonNHS Trade Pybls Curr,Balance Sheet,SUPPLY CHAIN COORDINATION LIMITED,47035252,"91,151.72",DE55 4QJ,290885854,1124037740
Department of Health,St. Helens&Knowsley Hospitals NHS Trust,31/05/2023,NonNHS Trade Pybls Curr,Balance Sheet,SUPPLY CHAIN COORDINATION LIMITED,47121024,"82,937.88",DE55 4QJ,290885854,1124045810
Department of Health,St. Helens&Knowsley Hospitals NHS Trust,31/05/2023,NonNHS Trade Pybls Curr,Balance Sheet,SUPPLY CHAIN COORDINATION LIMITED,47121027,"156,164.30",DE55 4QJ,290885854,1124041877
Department of Health,St. Helens&Knowsley Hospitals NHS Trust,31/05/2023,Office Equipment,PFI DESIGN + CONSTRUCTION,REVEAL MEDIA LTD,47016095,"22,588.00",KT1 4BU,798532669,12975
Department of Health,St. Helens&Knowsley Hospitals NHS Trust,31/05/2023,Office Equipment,PFI DESIGN + CONSTRUCTION,REVEAL MEDIA LTD,47016095,64.00,KT1 4BU,798532669,12975
Department of Health,St. Helens&Knowsley Hospitals NHS Trust,31/05/2023,Office Equipment,PFI DESIGN + CONSTRUCTION,REVEAL MEDIA LTD,47016095,"4,530.40",KT1 4BU,798532669,12975
Department of Health,St. Helens&Knowsley Hospitals NHS Trust,31/05/2023,Other Clinical Costs,RADIOGRAPHY WHISTON,WELLBEING SOFTWARE LTD,46802583,"32,177.75",NG18 5FB,,4998
Department of Health,St. Helens&Knowsley Hospitals NHS Trust,31/05/2023,Other recvables - Current,Balance Sheet,10003266,4715051225000018,"46,878.77 ",,,
Department of Health,St. Helens&Knowsley Hospitals NHS Trust,31/05/2023,Postage & Carriage,HOTEL SERVICES MGT WHIST,PITNEY BOWES LTD,46801910,"34,789.71",E14 5HU,213329300,BK020092
Department of Health,St. Helens&Knowsley Hospitals NHS Trust,31/05/2023,Postage & Carriage,HOTEL SERVICES MGT ST H,PITNEY BOWES LTD,46934723,"44,818.92",E14 5HU,213329300,BK053558
Department of Health,St. Helens&Knowsley Hospitals NHS Trust,31/05/2023,Postage & Carriage,HOTEL SERVICES MGT WHIST,PITNEY BOWES LTD,47082598,"68,872.72",E14 5HU,213329300,BK102254
Department of Health,St. Helens&Knowsley Hospitals NHS Trust,31/05/2023,Printing Costs,GEN MED ENDOSCOPY H2,OLYMPUS KEYMED,47129548,"349,308.00",SS2 5QH,250317495,CD2847784
Department of Health,St. Helens&Knowsley Hospitals NHS Trust,31/05/2023,Stocks Raw Materials,Balance Sheet,ALLIANCE HEALTHCARE DISTRIBUTION LTD,46715595,"66,721.85",KT9 1SN,GB386334767,MARCH26032023
Department of Health,St. Helens&Knowsley Hospitals NHS Trust,31/05/2023,Stocks Raw Materials,Balance Sheet,MAWDSLEY BROOKS & CO LTD,46715596,"4,412.49",M50 2PW,GB974809667,MARCH26032023
Department of Health,St. Helens&Knowsley Hospitals NHS Trust,31/05/2023,Stocks Raw Materials,Balance Sheet,MAWDSLEY BROOKS & CO LTD,46715596,"22,094.20",M50 2PW,GB974809667,MARCH26032023
Department of Health,St. Helens&Knowsley Hospitals NHS Trust,31/05/2023,Stocks Raw Materials,Balance Sheet,AAH PHARMACEUTICALS LTD,46715597,"33,534.15",WA2 8UH,GB 222 5169 87,MARCH26032023
Department of Health,St. Helens&Knowsley Hospitals NHS Trust,31/05/2023,Stocks Raw Materials,Balance Sheet,PHOENIX HEALTHCARE DISTRIBUTION LTD,46715600,"43,083.44",WA7 3DJ,109898228,APRIL02042023
Department of Health,St. Helens&Knowsley Hospitals NHS Trust,31/05/2023,Stocks Raw Materials,Balance Sheet,AAH PHARMACEUTICALS LTD,46715602,"28,793.39",WA2 8UH,GB 222 5169 87,APRIL02042023
Department of Health,St. Helens&Knowsley Hospitals NHS Trust,31/05/2023,Stocks Raw Materials,Balance Sheet,ALLIANCE HEALTHCARE DISTRIBUTION LTD,46715603,"83,070.26",KT9 1SN,GB386334767,APRIL02042023
Department of Health,St. Helens&Knowsley Hospitals NHS Trust,31/05/2023,Stocks Raw Materials,Balance Sheet,AAH PHARMACEUTICALS LTD,46803083,"31,026.37",WA2 8UH,GB 222 5169 87,APRIL09042023
Department of Health,St. Helens&Knowsley Hospitals NHS Trust,31/05/2023,Stocks Raw Materials,Balance Sheet,ALLIANCE HEALTHCARE DISTRIBUTION LTD,46803084,"67,985.49",KT9 1SN,GB386334767,APRIL09042023
Department of Health,St. Helens&Knowsley Hospitals NHS Trust,31/05/2023,Stocks Raw Materials,Balance Sheet,SCIENSUS PHARMA SERVICES LTD,46803085,"81,564.50",DE14 1SZ,GB873342418,APRIL09042023
Department of Health,St. Helens&Knowsley Hospitals NHS Trust,31/05/2023,Stocks Raw Materials,Balance Sheet,PHOENIX HEALTHCARE DISTRIBUTION LTD,46803086,"9,314.59",WA7 3DJ,109898228,APRIL09042023
Department of Health,St. Helens&Knowsley Hospitals NHS Trust,31/05/2023,Stocks Raw Materials,Balance Sheet,PHOENIX HEALTHCARE DISTRIBUTION LTD,46803086,"44,516.70",WA7 3DJ,109898228,APRIL09042023
Department of Health,St. Helens&Knowsley Hospitals NHS Trust,31/05/2023,Stocks Raw Materials,Balance Sheet,PHOENIX HEALTHCARE DISTRIBUTION LTD,46803087,"71,597.76",WA7 3DJ,109898228,MARCH19032023
Department of Health,St. Helens&Knowsley Hospitals NHS Trust,31/05/2023,Stocks Raw Materials,Balance Sheet,AAH PHARMACEUTICALS LTD,46803088,"9,702.58",WA2 8UH,GB 222 5169 87,MARCH19032023
Department of Health,St. Helens&Knowsley Hospitals NHS Trust,31/05/2023,Stocks Raw Materials,Balance Sheet,AAH PHARMACEUTICALS LTD,46803088,"42,109.40",WA2 8UH,GB 222 5169 87,MARCH19032023
Department of Health,St. Helens&Knowsley Hospitals NHS Trust,31/05/2023,Stocks Raw Materials,Balance Sheet,ALLIANCE HEALTHCARE DISTRIBUTION LTD,46803089,"48,551.01",KT9 1SN,GB386334767,MARCH19032023
Department of Health,St. Helens&Knowsley Hospitals NHS Trust,31/05/2023,Stocks Raw Materials,Balance Sheet,MAWDSLEY BROOKS & CO LTD,46803090,"5,711.56",M50 2PW,GB974809667,MARCH19032023
Department of Health,St. Helens&Knowsley Hospitals NHS Trust,31/05/2023,Stocks Raw Materials,Balance Sheet,MAWDSLEY BROOKS & CO LTD,46803090,"28,206.60",M50 2PW,GB974809667,MARCH19032023
Department of Health,St. Helens&Knowsley Hospitals NHS Trust,31/05/2023,Stocks Raw Materials,Balance Sheet,SCIENSUS PHARMA SERVICES LTD,46803091,"140,621.14",DE14 1SZ,GB873342418,MARCH19032023
Department of Health,St. Helens&Knowsley Hospitals NHS Trust,31/05/2023,Stocks Raw Materials,Balance Sheet,PHOENIX HEALTHCARE DISTRIBUTION LTD,46803093,"33,629.66",WA7 3DJ,109898228,APRIL16042023
Department of Health,St. Helens&Knowsley Hospitals NHS Trust,31/05/2023,Stocks Raw Materials,Balance Sheet,MAWDSLEY BROOKS & CO LTD,46803094,"40,633.71",M50 2PW,GB974809667,APRIL16042023
Department of Health,St. Helens&Knowsley Hospitals NHS Trust,31/05/2023,Stocks Raw Materials,Balance Sheet,AAH PHARMACEUTICALS LTD,46803095,"12,585.37",WA2 8UH,GB 222 5169 87,APRIL16042023
Department of Health,St. Helens&Knowsley Hospitals NHS Trust,31/05/2023,Stocks Raw Materials,Balance Sheet,AAH PHARMACEUTICALS LTD,46803095,"47,991.00",WA2 8UH,GB 222 5169 87,APRIL16042023
Department of Health,St. Helens&Knowsley Hospitals NHS Trust,31/05/2023,Stocks Raw Materials,Balance Sheet,ALLIANCE HEALTHCARE DISTRIBUTION LTD,46803096,"41,865.86",KT9 1SN,GB386334767,APRIL16042023
Department of Health,St. Helens&Knowsley Hospitals NHS Trust,31/05/2023,Stocks Raw Materials,Balance Sheet,SCIENSUS PHARMA SERVICES LTD,46803097,"41,825.80",DE14 1SZ,GB873342418,APRIL16042023
Department of Health,St. Helens&Knowsley Hospitals NHS Trust,31/05/2023,Stocks Raw Materials,Balance Sheet,MAWDSLEY BROOKS & CO LTD,46803098,"28,291.83",M50 2PW,GB974809667,APRIL23042023
Department of Health,St. Helens&Knowsley Hospitals NHS Trust,31/05/2023,Stocks Raw Materials,Balance Sheet,ALLIANCE HEALTHCARE DISTRIBUTION LTD,46803099,"54,464.91",KT9 1SN,GB386334767,APRIL23042023
Department of Health,St. Helens&Knowsley Hospitals NHS Trust,31/05/2023,Stocks Raw Materials,Balance Sheet,PHOENIX HEALTHCARE DISTRIBUTION LTD,46803100,"4,455.86",WA7 3DJ,109898228,APRIL23042023
Department of Health,St. Helens&Knowsley Hospitals NHS Trust,31/05/2023,Stocks Raw Materials,Balance Sheet,PHOENIX HEALTHCARE DISTRIBUTION LTD,46803100,"20,870.05",WA7 3DJ,109898228,APRIL23042023
Department of Health,St. Helens&Knowsley Hospitals NHS Trust,31/05/2023,Stocks Raw Materials,Balance Sheet,BAYER PLC,46988997,"26,917.45",RG14 1JA,641958611,824C490283
Department of Health,St. Helens&Knowsley Hospitals NHS Trust,31/05/2023,Stocks Raw Materials,Balance Sheet,NOVARTIS PHARMACEUTICALS UK LTD,46989151,"13,715.52",GU16 7SR,557290227,92773123
Department of Health,St. Helens&Knowsley Hospitals NHS Trust,31/05/2023,Stocks Raw Materials,Balance Sheet,NOVARTIS PHARMACEUTICALS UK LTD,46989151,"2,540.02",GU16 7SR,557290227,92773123
Department of Health,St. Helens&Knowsley Hospitals NHS Trust,31/05/2023,Stocks Raw Materials,Balance Sheet,NOVARTIS PHARMACEUTICALS UK LTD,46989151,595.19,GU16 7SR,557290227,92773123
Department of Health,St. Helens&Knowsley Hospitals NHS Trust,31/05/2023,Stocks Raw Materials,Balance Sheet,NOVARTIS PHARMACEUTICALS UK LTD,46989151,"1,683.40",GU16 7SR,557290227,92773123
Department of Health,St. Helens&Knowsley Hospitals NHS Trust,31/05/2023,Stocks Raw Materials,Balance Sheet,NOVARTIS PHARMACEUTICALS UK LTD,46989151,33.19,GU16 7SR,557290227,92773123
Department of Health,St. Helens&Knowsley Hospitals NHS Trust,31/05/2023,Stocks Raw Materials,Balance Sheet,NOVARTIS PHARMACEUTICALS UK LTD,46989151,"7,862.40",GU16 7SR,557290227,92773123
Department of Health,St. Helens&Knowsley Hospitals NHS Trust,31/05/2023,Stocks Raw Materials,Balance Sheet,NOVARTIS PHARMACEUTICALS UK LTD,46989151,28.97,GU16 7SR,557290227,92773123
Department of Health,St. Helens&Knowsley Hospitals NHS Trust,31/05/2023,Stocks Raw Materials,Balance Sheet,BAYER PLC,46989166,"25,092.54",RG14 1JA,641958611,824C491610
Department of Health,St. Helens&Knowsley Hospitals NHS Trust,31/05/2023,Stocks Raw Materials,Balance Sheet,JANSSEN CILAG LTD,46989348,"29,030.40",HP12 4EG,207929448,930919658
Department of Health,St. Helens&Knowsley Hospitals NHS Trust,31/05/2023,Stocks Raw Materials,Balance Sheet,ROCHE PRODUCTS LTD,46989357,"16,296.00",AL7 3BR,600358871,1322283485
Department of Health,St. Helens&Knowsley Hospitals NHS Trust,31/05/2023,Stocks Raw Materials,Balance Sheet,ROCHE PRODUCTS LTD,46989357,"10,886.40",AL7 3BR,600358871,1322283485
Department of Health,St. Helens&Knowsley Hospitals NHS Trust,31/05/2023,Stocks Raw Materials,Balance Sheet,BAYER PLC,47091063,"26,917.45",RG14 1JA,641958611,824C494849
Department of Health,St. Helens&Knowsley Hospitals NHS Trust,31/05/2023,Stocks Raw Materials,Balance Sheet,NOVARTIS PHARMACEUTICALS UK LTD,47091070,"21,628.32",GU16 7SR,557290227,92778601
Department of Health,St. Helens&Knowsley Hospitals NHS Trust,31/05/2023,Stocks Raw Materials,Balance Sheet,NOVARTIS PHARMACEUTICALS UK LTD,47091070,"9,147.60",GU16 7SR,557290227,92778601
Department of Health,St. Helens&Knowsley Hospitals NHS Trust,31/05/2023,Stocks Raw Materials,Balance Sheet,NOVARTIS PHARMACEUTICALS UK LTD,47091070,"5,241.60",GU16 7SR,557290227,92778601
Department of Health,St. Helens&Knowsley Hospitals NHS Trust,31/05/2023,Stocks Raw Materials,Balance Sheet,SCIENSUS PHARMA SERVICES LTD,47120229,"104,978.30",DE14 1SZ,GB873342418,APRIL30042023
Department of Health,St. Helens&Knowsley Hospitals NHS Trust,31/05/2023,Stocks Raw Materials,Balance Sheet,SCIENSUS PHARMA SERVICES LTD,47120231,"163,672.45",DE14 1SZ,GB873342418,MAY07052023
Department of Health,St. Helens&Knowsley Hospitals NHS Trust,31/05/2023,Training Expenses,CLINICAL EDUCATION - HR,INOVUS LTD,46688809,"16,150.00",WA9 5AA,180391609,INV1327
Department of Health,St. Helens&Knowsley Hospitals NHS Trust,31/05/2023,Training Expenses,CLINICAL EDUCATION - HR,INOVUS LTD,46688809,"15,160.00",WA9 5AA,180391609,INV1327
Department of Health,St. Helens&Knowsley Hospitals NHS Trust,31/05/2023,Training Materials,POST GRAD MEDICAL CENTRE,GAUMARD SCIENTIFIC CO INC,44875955,944.57,FL 33196,,82467
Department of Health,St. Helens&Knowsley Hospitals NHS Trust,31/05/2023,Training Materials,POST GRAD MEDICAL CENTRE,GAUMARD SCIENTIFIC CO INC,44875955,"1,191.10",FL 33196,,82467
Department of Health,St. Helens&Knowsley Hospitals NHS Trust,31/05/2023,Training Materials,POST GRAD MEDICAL CENTRE,GAUMARD SCIENTIFIC CO INC,44875955,"27,867.96",FL 33196,,82467
Department of Health,St. Helens&Knowsley Hospitals NHS Trust,31/05/2023,Water,RATES/WATER WHISTON,WATER PLUS LTD,47129359,"37,219.76",S98 1DY,GB243663406,WPINV01972269
Department of Health,St. Helens&Knowsley Hospitals NHS Trust,31/05/2023,X-Ray Equipment Purchase,RADIOGRAPHY WHISTON,DIAGNOSTIC HEALTHCARE LTD,46266845,"46,762.50",M22 4BJ,204941917,210562
Department of Health,St. Helens&Knowsley Hospitals NHS Trust,31/05/2023,X-Ray Equipment Purchase,RADIOGRAPHY WHISTON,DIAGNOSTIC HEALTHCARE LTD,46266845,"19,387.50",M22 4BJ,204941917,210562
Department of Health,St. Helens&Knowsley Hospitals NHS Trust,31/05/2023,X-Ray Equipment Purchase,RADIOGRAPHY WHISTON,DIAGNOSTIC HEALTHCARE LTD,46266845,"9,352.50",M22 4BJ,204941917,210562
Department of Health,St. Helens&Knowsley Hospitals NHS Trust,31/05/2023,X-Ray Equipment Purchase,RADIOGRAPHY WHISTON,DIAGNOSTIC HEALTHCARE LTD,46859151,"12,250.00",M22 4BJ,204941917,210693
Department of Health,St. Helens&Knowsley Hospitals NHS Trust,31/05/2023,X-Ray Equipment Purchase,RADIOGRAPHY WHISTON,DIAGNOSTIC HEALTHCARE LTD,46859151,"22,050.00",M22 4BJ,204941917,210693
